[Event "Early-Titled-Tuesday-Blitz-April-02-2024"]
[Site "Chess.com"]
[Date "2024.04.02"]
[Round "7"]
[White "Byniolus"]
[Black "GOGIEFF"]
[Result "0-1"]
[WhiteElo "2788"]
[BlackElo "3021"]
[TimeControl "180+1"]
[EndTime "9:17:31 PDT"]
[Termination "GOGIEFF won by checkmate"]

1. d4 {[%clk 0:03:00.9]} 1... Nf6 {[%clk 0:02:59.5]} 2. Nf3 {[%clk 0:03:01.1]}
2... b6 {[%clk 0:02:59.3]} 3. Bf4 {[%clk 0:03:01]} 3... Bb7 {[%clk 0:02:59.7]}
4. e3 {[%clk 0:03:01.6]} 4... e6 {[%clk 0:02:59.3]} 5. h3 {[%clk 0:03:01.4]}
5... Bd6 {[%clk 0:02:57.7]} 6. Bxd6 {[%clk 0:03:01.7]} 6... cxd6 {[%clk
0:02:58.1]} 7. Nbd2 {[%clk 0:03:02.4]} 7... O-O {[%clk 0:02:57.6]} 8. Bd3 {[%clk
0:02:59.9]} 8... d5 {[%clk 0:02:57.9]} 9. O-O {[%clk 0:03:00.1]} 9... d6 {[%clk
0:02:55.3]} 10. c4 {[%clk 0:03:00]} 10... Nbd7 {[%clk 0:02:54.1]} 11. Qb3 {[%clk
0:02:54.9]} 11... dxc4 {[%clk 0:02:51.1]} 12. Bxc4 {[%clk 0:02:55.1]} 12... Rc8
{[%clk 0:02:45.2]} 13. Rfc1 {[%clk 0:02:53.2]} 13... Qc7 {[%clk 0:02:40.1]} 14.
Rc3 {[%clk 0:02:19.3]} 14... Qb8 {[%clk 0:02:37.9]} 15. Rac1 {[%clk 0:02:17.8]}
15... a6 {[%clk 0:02:30.5]} 16. a4 {[%clk 0:02:10]} 16... Nd5 {[%clk 0:02:25.5]}
17. R3c2 {[%clk 0:02:06.1]} 17... a5 {[%clk 0:02:25.7]} 18. Bb5 {[%clk
0:02:00.3]} 18... N7f6 {[%clk 0:02:18.4]} 19. Rxc8 {[%clk 0:01:43.5]} 19... Rxc8
{[%clk 0:02:19.3]} 20. Qd1 {[%clk 0:01:41.6]} 20... Nb4 {[%clk 0:02:17.7]} 21.
Ne1 {[%clk 0:01:33.1]} 21... Qa8 {[%clk 0:02:09.1]} 22. Nc4 {[%clk 0:01:24.8]}
22... Qb8 {[%clk 0:01:52.7]} 23. Nxb6 {[%clk 0:01:20.6]} 23... Rxc1 {[%clk
0:01:51.5]} 24. Qxc1 {[%clk 0:01:21.5]} 24... h5 {[%clk 0:01:43.1]} 25. Nc4
{[%clk 0:01:16.4]} 25... Qc7 {[%clk 0:01:43]} 26. Qd1 {[%clk 0:01:09.4]} 26...
Be4 {[%clk 0:01:32.6]} 27. f3 {[%clk 0:01:07.5]} 27... Bg6 {[%clk 0:01:32.7]}
28. Qd2 {[%clk 0:00:58.1]} 28... Bh7 {[%clk 0:01:18.9]} 29. Qf2 {[%clk
0:00:44.6]} 29... d5 {[%clk 0:01:16.5]} 30. Ne5 {[%clk 0:00:40.6]} 30... Qc1
{[%clk 0:01:15.8]} 31. Kh2 {[%clk 0:00:40.2]} 31... Qd1 {[%clk 0:01:07.9]} 32.
g4 {[%clk 0:00:34.1]} 32... h4 {[%clk 0:01:02.4]} 33. Ng2 {[%clk 0:00:26.2]}
33... g5 {[%clk 0:01:00.7]} 34. Qe2 {[%clk 0:00:13.4]} 34... Qc1 {[%clk
0:00:59]} 35. b3 {[%clk 0:00:08.5]} 35... Kg7 {[%clk 0:00:56]} 36. Qf2 {[%clk
0:00:07.8]} 36... Bc2 {[%clk 0:00:45.8]} 37. Nd7 {[%clk 0:00:04.1]} 37... Nxd7
{[%clk 0:00:39.9]} 38. Bxd7 {[%clk 0:00:05]} 38... Bxb3 {[%clk 0:00:40.2]} 39.
f4 {[%clk 0:00:05.2]} 39... Qc7 {[%clk 0:00:36]} 40. Bb5 {[%clk 0:00:04.8]}
40... Bc2 {[%clk 0:00:36.3]} 41. Kg1 {[%clk 0:00:04]} 41... f6 {[%clk
0:00:33.3]} 42. fxg5 {[%clk 0:00:03.7]} 42... fxg5 {[%clk 0:00:34.2]} 43. Ne1
{[%clk 0:00:02.4]} 43... Be4 {[%clk 0:00:34]} 44. Nf3 {[%clk 0:00:03.1]} 44...
Qc1+ {[%clk 0:00:31.7]} 45. Kh2 {[%clk 0:00:03.6]} 45... Nc2 {[%clk 0:00:29.9]}
46. Nxg5 {[%clk 0:00:02.9]} 46... Qh1# {[%clk 0:00:29.4]} 0-1

[Event "Early-Titled-Tuesday-Blitz-April-02-2024"]
[Site "Chess.com"]
[Date "2024.04.02"]
[Round "7"]
[White "Gabcur"]
[Black "teresin05"]
[Result "0-1"]
[WhiteElo "2335"]
[BlackElo "2253"]
[TimeControl "180+1"]
[EndTime "9:17:32 PDT"]
[Termination "teresin05 won by resignation"]

1. d4 {[%clk 0:02:55.5]} 1... d5 {[%clk 0:02:44.7]} 2. Nc3 {[%clk 0:02:54.3]}
2... Nf6 {[%clk 0:02:44]} 3. Bf4 {[%clk 0:02:54.2]} 3... Bf5 {[%clk 0:02:39.5]}
4. f3 {[%clk 0:02:52.7]} 4... e6 {[%clk 0:02:37.6]} 5. g4 {[%clk 0:02:52.7]}
5... Bg6 {[%clk 0:02:37.6]} 6. h4 {[%clk 0:02:53.3]} 6... h6 {[%clk 0:02:34.3]}
7. e3 {[%clk 0:02:53.4]} 7... a6 {[%clk 0:02:30.4]} 8. Bd3 {[%clk 0:02:53.2]}
8... Bxd3 {[%clk 0:02:29.1]} 9. Qxd3 {[%clk 0:02:54.1]} 9... c5 {[%clk
0:02:29.2]} 10. Nge2 {[%clk 0:02:49.6]} 10... Nc6 {[%clk 0:02:28.4]} 11. Bg3
{[%clk 0:02:30.1]} 11... Nb4 {[%clk 0:02:21.7]} 12. Qd2 {[%clk 0:02:28.2]} 12...
cxd4 {[%clk 0:02:12.1]} 13. exd4 {[%clk 0:02:27.5]} 13... Bd6 {[%clk 0:02:12.5]}
14. Kf2 {[%clk 0:02:15.6]} 14... O-O {[%clk 0:02:08.6]} 15. Rag1 {[%clk
0:01:56.8]} 15... Bxg3+ {[%clk 0:02:05.4]} 16. Nxg3 {[%clk 0:01:52.3]} 16... Nd7
{[%clk 0:02:01.3]} 17. g5 {[%clk 0:01:50.8]} 17... Kh7 {[%clk 0:01:55.2]} 18. a3
{[%clk 0:01:44.7]} 18... Nc6 {[%clk 0:01:53.6]} 19. Qd3+ {[%clk 0:01:42.9]}
19... g6 {[%clk 0:01:51.9]} 20. h5 {[%clk 0:01:36.1]} 20... Qxg5 {[%clk
0:01:45]} 21. hxg6+ {[%clk 0:01:14.4]} 21... fxg6 {[%clk 0:01:45.9]} 22. Rh5
{[%clk 0:00:55.8]} 22... Rxf3+ {[%clk 0:01:21.7]} 23. Kxf3 {[%clk 0:00:40]}
23... Nce5+ {[%clk 0:01:20.7]} 24. dxe5 {[%clk 0:00:37.6]} 24... Nxe5+ {[%clk
0:01:21.6]} 25. Kg2 {[%clk 0:00:33.2]} 25... Nxd3 {[%clk 0:00:38.3]} 26. Rxg5
{[%clk 0:00:32.9]} 26... Nf4+ {[%clk 0:00:37.2]} 27. Kf3 {[%clk 0:00:33]} 27...
hxg5 {[%clk 0:00:37.9]} 28. Kg4 {[%clk 0:00:29.9]} 28... Kg7 {[%clk 0:00:36.2]}
29. Re1 {[%clk 0:00:22.8]} 29... Kf6 {[%clk 0:00:35.9]} 30. Rf1 {[%clk
0:00:16.4]} 30... Rh8 {[%clk 0:00:35.5]} 31. Kf3 {[%clk 0:00:15.8]} 31... Rh3
{[%clk 0:00:31.7]} 32. Rh1 {[%clk 0:00:13.1]} 32... Rxh1 {[%clk 0:00:18.1]} 33.
Nxh1 {[%clk 0:00:14]} 33... e5 {[%clk 0:00:18.2]} 34. Nf2 {[%clk 0:00:14.1]}
34... Kf5 {[%clk 0:00:17]} 35. Ke3 {[%clk 0:00:12]} 35... d4+ {[%clk 0:00:15.4]}
36. Kf3 {[%clk 0:00:12.1]} 36... dxc3 {[%clk 0:00:15.6]} 37. bxc3 {[%clk
0:00:12.7]} 37... g4+ {[%clk 0:00:14.1]} 38. Nxg4 {[%clk 0:00:11.9]} 38... e4+
{[%clk 0:00:14.5]} 39. Kg3 {[%clk 0:00:12.3]} 39... Ne2+ {[%clk 0:00:14.9]} 40.
Kh4 {[%clk 0:00:11]} 40... g5+ {[%clk 0:00:14.1]} 41. Kh5 {[%clk 0:00:10.9]}
41... Nf4+ {[%clk 0:00:12.8]} 0-1

[Event "Early-Titled-Tuesday-Blitz-April-02-2024"]
[Site "Chess.com"]
[Date "2024.04.02"]
[Round "7"]
[White "ValentinDragnev"]
[Black "Vasily_IM"]
[Result "1-0"]
[WhiteElo "2728"]
[BlackElo "2555"]
[TimeControl "180+1"]
[EndTime "9:17:34 PDT"]
[Termination "ValentinDragnev won by resignation"]

1. d4 {[%clk 0:02:55.6]} 1... d5 {[%clk 0:02:59.8]} 2. c4 {[%clk 0:02:56.1]}
2... e6 {[%clk 0:02:58.9]} 3. Nf3 {[%clk 0:02:56.7]} 3... Nf6 {[%clk 0:02:59.3]}
4. g3 {[%clk 0:02:56.9]} 4... a6 {[%clk 0:02:59.7]} 5. Bg2 {[%clk 0:02:55]} 5...
dxc4 {[%clk 0:02:59.5]} 6. O-O {[%clk 0:02:55.7]} 6... b5 {[%clk 0:02:58.1]} 7.
Ne5 {[%clk 0:02:54.5]} 7... c6 {[%clk 0:02:58]} 8. Nxc6 {[%clk 0:02:49.3]} 8...
Qb6 {[%clk 0:02:56.4]} 9. Na5 {[%clk 0:02:42]} 9... Ra7 {[%clk 0:02:53.1]} 10.
Bd2 {[%clk 0:02:41.3]} 10... c3 {[%clk 0:02:48.4]} 11. Bxc3 {[%clk 0:01:55.6]}
11... b4 {[%clk 0:02:48]} 12. Nc4 {[%clk 0:01:55.1]} 12... Qc7 {[%clk 0:02:36]}
13. Bxb4 {[%clk 0:01:41.6]} 13... Qxc4 {[%clk 0:02:34.8]} 14. Bxf8 {[%clk
0:01:39.8]} 14... Kxf8 {[%clk 0:02:30.1]} 15. Na3 {[%clk 0:01:40.1]} 15... Qb4
{[%clk 0:02:22.4]} 16. Rc1 {[%clk 0:01:40]} 16... Bb7 {[%clk 0:02:07.5]} 17. Rc4
{[%clk 0:01:04.4]} 17... Qb6 {[%clk 0:01:44]} 18. Qa4 {[%clk 0:00:58.3]} 18...
Ke7 {[%clk 0:01:29.3]} 19. Rb4 {[%clk 0:00:56.5]} 19... Qc7 {[%clk 0:01:23.7]}
20. Rc4 {[%clk 0:00:51.2]} 20... Qd6 {[%clk 0:01:17.6]} 21. d5 {[%clk
0:00:17.3]} 21... Bxd5 {[%clk 0:01:09.7]} 22. Rd1 {[%clk 0:00:11]} 22... Rc7
{[%clk 0:00:35.1]} 23. e4 {[%clk 0:00:08.6]} 23... Rxc4 {[%clk 0:00:30.7]} 24.
Nxc4 {[%clk 0:00:08.3]} 24... Qc5 {[%clk 0:00:24.8]} 25. exd5 {[%clk 0:00:07]}
25... Nxd5 {[%clk 0:00:24.4]} 26. Bxd5 {[%clk 0:00:07.3]} 26... exd5 {[%clk
0:00:24.2]} 27. Re1+ {[%clk 0:00:06.9]} 27... Kf6 {[%clk 0:00:20.5]} 28. Ne5
{[%clk 0:00:07.8]} 28... d4 {[%clk 0:00:15.3]} 29. Qd1 {[%clk 0:00:05.1]} 29...
Qd5 {[%clk 0:00:11.4]} 30. Qh5 {[%clk 0:00:04.7]} 30... g6 {[%clk 0:00:10.3]}
31. Ng4+ {[%clk 0:00:04]} 31... Kg7 {[%clk 0:00:10.4]} 32. Qxd5 {[%clk
0:00:04.9]} 1-0

[Event "Early-Titled-Tuesday-Blitz-April-02-2024"]
[Site "Chess.com"]
[Date "2024.04.02"]
[Round "7"]
[White "Kirill_Klukin"]
[Black "profedechess93"]
[Result "0-1"]
[WhiteElo "2804"]
[BlackElo "2662"]
[TimeControl "180+1"]
[EndTime "9:17:37 PDT"]
[Termination "profedechess93 won by resignation"]

1. d4 {[%clk 0:03:00.9]} 1... d5 {[%clk 0:02:59.8]} 2. c4 {[%clk 0:02:57.8]}
2... c6 {[%clk 0:02:59.6]} 3. Nc3 {[%clk 0:02:57.9]} 3... Nf6 {[%clk 0:02:59.4]}
4. Nf3 {[%clk 0:02:58.2]} 4... dxc4 {[%clk 0:02:59.7]} 5. e3 {[%clk 0:02:58.5]}
5... b5 {[%clk 0:02:59.4]} 6. a4 {[%clk 0:02:59.2]} 6... b4 {[%clk 0:02:58]} 7.
Na2 {[%clk 0:02:59.8]} 7... a5 {[%clk 0:02:58.7]} 8. Bxc4 {[%clk 0:03:00.4]}
8... Ba6 {[%clk 0:02:59.2]} 9. Qe2 {[%clk 0:02:59.5]} 9... Bxc4 {[%clk 0:02:59]}
10. Qxc4 {[%clk 0:03:00.4]} 10... Qd5 {[%clk 0:02:59.7]} 11. Qe2 {[%clk
0:02:51.8]} 11... e6 {[%clk 0:02:59.5]} 12. O-O {[%clk 0:02:52.3]} 12... Nbd7
{[%clk 0:02:59.6]} 13. Bd2 {[%clk 0:02:52.9]} 13... Bd6 {[%clk 0:02:56.4]} 14.
Nc1 {[%clk 0:02:53.2]} 14... c5 {[%clk 0:02:56.2]} 15. Re1 {[%clk 0:02:38]}
15... Ne4 {[%clk 0:02:54.3]} 16. Nd3 {[%clk 0:02:18.7]} 16... O-O {[%clk
0:02:52.5]} 17. Nf4 {[%clk 0:02:02.8]} 17... Bxf4 {[%clk 0:02:48.9]} 18. exf4
{[%clk 0:02:03.7]} 18... Nxd2 {[%clk 0:02:47.2]} 19. Qxd2 {[%clk 0:02:04.6]}
19... c4 {[%clk 0:02:41.1]} 20. Rac1 {[%clk 0:02:00.4]} 20... Rfc8 {[%clk
0:02:33.6]} 21. Rc2 {[%clk 0:01:36]} 21... Nb6 {[%clk 0:02:03.6]} 22. Ra1 {[%clk
0:01:27.5]} 22... c3 {[%clk 0:01:31.9]} 23. Qe2 {[%clk 0:00:54.6]} 23... cxb2
{[%clk 0:01:24.9]} 24. Rxb2 {[%clk 0:00:55.5]} 24... Nc4 {[%clk 0:01:21.5]} 25.
Rbb1 {[%clk 0:00:52.9]} 25... Rab8 {[%clk 0:01:13.5]} 26. Qd3 {[%clk 0:00:47.8]}
26... Na3 {[%clk 0:01:09.4]} 27. Rb2 {[%clk 0:00:35.1]} 27... g6 {[%clk
0:01:01.1]} 28. h4 {[%clk 0:00:33.8]} 28... Kg7 {[%clk 0:00:49.4]} 29. Re1
{[%clk 0:00:30.6]} 29... Rc3 {[%clk 0:00:42.1]} 30. Qa6 {[%clk 0:00:14.8]} 30...
Rxf3 {[%clk 0:00:31.8]} 31. gxf3 {[%clk 0:00:10.5]} 31... Qxf3 {[%clk
0:00:32.7]} 32. Qxa5 {[%clk 0:00:07.7]} 32... Nc4 {[%clk 0:00:31.5]} 33. Qc7
{[%clk 0:00:06.7]} 33... Nxb2 {[%clk 0:00:27.6]} 34. Qxb8 {[%clk 0:00:06.5]}
34... Nd3 {[%clk 0:00:23.6]} 35. Rf1 {[%clk 0:00:05]} 35... Nxf4 {[%clk
0:00:18]} 36. Qe5+ {[%clk 0:00:03.4]} 36... f6 {[%clk 0:00:17.6]} 37. Qxf4
{[%clk 0:00:01]} 37... Qxf4 {[%clk 0:00:17.1]} 0-1

[Event "Early-Titled-Tuesday-Blitz-April-02-2024"]
[Site "Chess.com"]
[Date "2024.04.02"]
[Round "7"]
[White "Saxar85"]
[Black "Goffredo_Fofi"]
[Result "1-0"]
[WhiteElo "2744"]
[BlackElo "2570"]
[TimeControl "180+1"]
[EndTime "9:17:37 PDT"]
[Termination "Saxar85 won by resignation"]

1. e4 {[%clk 0:03:00.9]} 1... g6 {[%clk 0:03:00.9]} 2. d4 {[%clk 0:03:00.2]}
2... Bg7 {[%clk 0:02:59.5]} 3. Nc3 {[%clk 0:02:58.7]} 3... c6 {[%clk 0:03:00.1]}
4. Nf3 {[%clk 0:02:56.5]} 4... d5 {[%clk 0:03:00.4]} 5. Bd3 {[%clk 0:02:54.9]}
5... dxe4 {[%clk 0:02:51.3]} 6. Nxe4 {[%clk 0:02:54.1]} 6... Nf6 {[%clk
0:02:51.9]} 7. Nxf6+ {[%clk 0:02:46.9]} 7... exf6 {[%clk 0:02:52.8]} 8. h3
{[%clk 0:02:43.7]} 8... Be6 {[%clk 0:02:52.6]} 9. O-O {[%clk 0:02:41.8]} 9...
O-O {[%clk 0:02:51.8]} 10. Bf4 {[%clk 0:02:40.2]} 10... a5 {[%clk 0:02:49]} 11.
Qd2 {[%clk 0:02:36.8]} 11... Na6 {[%clk 0:02:48.8]} 12. c3 {[%clk 0:02:34.7]}
12... Nc7 {[%clk 0:02:48.5]} 13. Rfe1 {[%clk 0:02:34.1]} 13... Nd5 {[%clk
0:02:48.1]} 14. Bg3 {[%clk 0:02:31.8]} 14... Re8 {[%clk 0:02:43]} 15. Re2 {[%clk
0:02:24.9]} 15... h5 {[%clk 0:02:38.8]} 16. Rae1 {[%clk 0:02:22.9]} 16... Kh7
{[%clk 0:02:38.8]} 17. Qc2 {[%clk 0:02:14]} 17... Qd7 {[%clk 0:02:36]} 18. Nd2
{[%clk 0:02:08.6]} 18... f5 {[%clk 0:02:24.2]} 19. Nf3 {[%clk 0:02:02.9]} 19...
f6 {[%clk 0:02:15.7]} 20. Nh4 {[%clk 0:01:52.8]} 20... Bf7 {[%clk 0:01:26]} 21.
Nxf5 {[%clk 0:01:46.4]} 21... Rxe2 {[%clk 0:01:26.1]} 22. Rxe2 {[%clk 0:01:46]}
22... Re8 {[%clk 0:01:26.5]} 23. Rxe8 {[%clk 0:01:35.6]} 23... Qxe8 {[%clk
0:01:23.2]} 24. Nd6 {[%clk 0:01:34.3]} 24... Qe6 {[%clk 0:01:23.1]} 25. Nxf7
{[%clk 0:01:30.8]} 25... Qxf7 {[%clk 0:01:24]} 26. Qe2 {[%clk 0:01:26.5]} 26...
Bh6 {[%clk 0:01:12.9]} 27. Qxh5 {[%clk 0:01:21.2]} 27... Kg7 {[%clk 0:01:09.8]}
28. Qe2 {[%clk 0:01:19.5]} 28... Nf4 {[%clk 0:01:07]} 29. Bxf4 {[%clk 0:01:19]}
29... Bxf4 {[%clk 0:01:07.9]} 30. g3 {[%clk 0:01:18.8]} 30... Bc1 {[%clk
0:01:07]} 31. b3 {[%clk 0:01:15.1]} 31... Ba3 {[%clk 0:01:06.4]} 32. Qe4 {[%clk
0:01:11.3]} 32... Bd6 {[%clk 0:01:04.2]} 33. Bc4 {[%clk 0:01:10.1]} 33... Qe7
{[%clk 0:01:03.1]} 34. Qxe7+ {[%clk 0:01:08.3]} 34... Bxe7 {[%clk 0:01:04]} 35.
Be6 {[%clk 0:01:08.2]} 35... Ba3 {[%clk 0:00:54.8]} 36. c4 {[%clk 0:01:06]}
36... Bb2 {[%clk 0:00:53.9]} 37. d5 {[%clk 0:01:05.8]} 37... cxd5 {[%clk
0:00:53.9]} 38. cxd5 {[%clk 0:01:05.7]} 38... Kf8 {[%clk 0:00:48.8]} 39. f4
{[%clk 0:01:04.3]} 39... Ke7 {[%clk 0:00:47.3]} 40. Kf2 {[%clk 0:01:03.8]} 40...
Bd4+ {[%clk 0:00:44.7]} 41. Kf3 {[%clk 0:01:03.7]} 41... Bc3 {[%clk 0:00:44.8]}
42. h4 {[%clk 0:01:02]} 42... Be1 {[%clk 0:00:43.8]} 43. Kg2 {[%clk 0:01:01.4]}
43... b6 {[%clk 0:00:42.7]} 44. Kh3 {[%clk 0:01:01.1]} 44... Bd2 {[%clk
0:00:36.6]} 45. Kg4 {[%clk 0:01:00.7]} 45... Be1 {[%clk 0:00:33.1]} 46. Kf3
{[%clk 0:01:00.4]} 46... Kf8 {[%clk 0:00:20.5]} 47. d6 {[%clk 0:00:58.6]} 47...
Bb4 {[%clk 0:00:19.2]} 48. d7 {[%clk 0:00:58]} 48... Ke7 {[%clk 0:00:19.9]} 49.
f5 {[%clk 0:00:55.8]} 49... gxf5 {[%clk 0:00:11.5]} 50. Bxf5 {[%clk 0:00:55.5]}
50... Bd2 {[%clk 0:00:08.4]} 51. Kg4 {[%clk 0:00:55.1]} 51... Be1 {[%clk
0:00:06.8]} 52. a4 {[%clk 0:00:52.4]} 52... Bf2 {[%clk 0:00:05]} 53. Kf3 {[%clk
0:00:52.3]} 53... Be1 {[%clk 0:00:04.9]} 54. h5 {[%clk 0:00:52.5]} 54... Bd2
{[%clk 0:00:05.1]} 55. g4 {[%clk 0:00:52.6]} 55... Bh6 {[%clk 0:00:05.6]} 56.
Ke4 {[%clk 0:00:52.8]} 56... Bg5 {[%clk 0:00:02.7]} 57. Kd5 {[%clk 0:00:52.6]}
57... Bc1 {[%clk 0:00:03]} 58. Kc6 {[%clk 0:00:52.7]} 58... Be3 {[%clk
0:00:03.5]} 59. Kc7 {[%clk 0:00:52.4]} 1-0

[Event "Early-Titled-Tuesday-Blitz-April-02-2024"]
[Site "Chess.com"]
[Date "2024.04.02"]
[Round "7"]
[White "MagnusCarlsen"]
[Black "MITerryble"]
[Result "1/2-1/2"]
[WhiteElo "3228"]
[BlackElo "3015"]
[TimeControl "180+1"]
[EndTime "9:17:38 PDT"]
[Termination "Game drawn - insufficient material"]

1. e4 {[%clk 0:02:59.9]} 1... e6 {[%clk 0:03:00.4]} 2. d4 {[%clk 0:03:00.4]}
2... d5 {[%clk 0:03:01]} 3. Nc3 {[%clk 0:03:01]} 3... Nf6 {[%clk 0:03:00.8]} 4.
e5 {[%clk 0:03:01.4]} 4... Nfd7 {[%clk 0:03:01.3]} 5. Nce2 {[%clk 0:03:02.1]}
5... c5 {[%clk 0:03:01.6]} 6. c3 {[%clk 0:03:02.8]} 6... cxd4 {[%clk 0:03:02.2]}
7. cxd4 {[%clk 0:03:02]} 7... f6 {[%clk 0:03:02.8]} 8. exf6 {[%clk 0:02:59.7]}
8... Nxf6 {[%clk 0:03:03.7]} 9. Nf3 {[%clk 0:02:59.1]} 9... Nc6 {[%clk
0:03:03.4]} 10. Ng3 {[%clk 0:02:53.6]} 10... Bb4+ {[%clk 0:02:49.9]} 11. Bd2
{[%clk 0:02:52.4]} 11... Qb6 {[%clk 0:02:50.8]} 12. Bxb4 {[%clk 0:02:41.5]}
12... Qxb4+ {[%clk 0:02:51.7]} 13. Qd2 {[%clk 0:02:42.1]} 13... Bd7 {[%clk
0:02:50.9]} 14. a3 {[%clk 0:02:37.4]} 14... Qxd2+ {[%clk 0:02:50.3]} 15. Kxd2
{[%clk 0:02:38.3]} 15... Ne4+ {[%clk 0:02:24.1]} 16. Ke3 {[%clk 0:02:38]} 16...
Nd6 {[%clk 0:02:24.4]} 17. Rc1 {[%clk 0:02:36.1]} 17... Ke7 {[%clk 0:02:15.3]}
18. Bd3 {[%clk 0:02:35.1]} 18... Rac8 {[%clk 0:02:13.8]} 19. Ne5 {[%clk
0:02:33.1]} 19... Nxe5 {[%clk 0:02:08.2]} 20. dxe5 {[%clk 0:02:34]} 20... Nc4+
{[%clk 0:02:08.8]} 21. Bxc4 {[%clk 0:02:33.9]} 21... dxc4 {[%clk 0:02:04.4]} 22.
Ne4 {[%clk 0:02:31]} 22... b5 {[%clk 0:02:02]} 23. Rhd1 {[%clk 0:02:27.9]} 23...
Bc6 {[%clk 0:01:52]} 24. Nd6 {[%clk 0:02:27.9]} 24... Rb8 {[%clk 0:01:52.2]} 25.
f4 {[%clk 0:02:24.6]} 25... h5 {[%clk 0:01:17.7]} 26. g3 {[%clk 0:02:16.6]}
26... Rhf8 {[%clk 0:01:11.6]} 27. a4 {[%clk 0:02:13.3]} 27... a6 {[%clk
0:01:06.2]} 28. axb5 {[%clk 0:02:13.3]} 28... axb5 {[%clk 0:01:07.1]} 29. Ra1
{[%clk 0:02:13.6]} 29... Ra8 {[%clk 0:01:07]} 30. Kd4 {[%clk 0:02:13.9]} 30...
Bd7 {[%clk 0:00:55]} 31. Kc5 {[%clk 0:02:13.2]} 31... Rfb8 {[%clk 0:00:51.8]}
32. h3 {[%clk 0:02:07.4]} 32... Rf8 {[%clk 0:00:47.3]} 33. Rxa8 {[%clk 0:01:57]}
33... Rxa8 {[%clk 0:00:48.2]} 34. g4 {[%clk 0:01:57]} 34... hxg4 {[%clk
0:00:43.3]} 35. hxg4 {[%clk 0:01:57.9]} 35... Ra2 {[%clk 0:00:43.5]} 36. Rb1
{[%clk 0:01:57.1]} 36... Ra4 {[%clk 0:00:34.4]} 37. f5 {[%clk 0:01:57.1]} 37...
c3 {[%clk 0:00:31.8]} 38. b4 {[%clk 0:01:46.2]} 38... Ra2 {[%clk 0:00:27.3]} 39.
Rc1 {[%clk 0:01:37.7]} 39... Rd2 {[%clk 0:00:23.9]} 40. Rxc3 {[%clk 0:01:19]}
40... Rd5+ {[%clk 0:00:22.3]} 41. Kb6 {[%clk 0:01:19]} 41... Rxe5 {[%clk
0:00:22.9]} 42. Kc7 {[%clk 0:00:59.1]} 42... exf5 {[%clk 0:00:22.2]} 43. gxf5
{[%clk 0:01:00]} 43... Bxf5 {[%clk 0:00:21.1]} 44. Re3 {[%clk 0:00:59.7]} 44...
Ke6 {[%clk 0:00:11.4]} 45. Rxe5+ {[%clk 0:00:56.6]} 45... Kxe5 {[%clk
0:00:11.7]} 46. Nxb5 {[%clk 0:00:57.5]} 46... Bd3 {[%clk 0:00:09.5]} 47. Nd6
{[%clk 0:00:54]} 47... Ke6 {[%clk 0:00:07.5]} 48. b5 {[%clk 0:00:49.4]} 48...
Bxb5 {[%clk 0:00:05.3]} 49. Nxb5 {[%clk 0:00:50.3]} 49... Kd5 {[%clk 0:00:04.4]}
50. Nc3+ {[%clk 0:00:49.1]} 50... Kd4 {[%clk 0:00:04.4]} 51. Ne2+ {[%clk
0:00:50]} 51... Ke3 {[%clk 0:00:04.7]} 52. Ng3 {[%clk 0:00:50.6]} 52... Kf3
{[%clk 0:00:04.9]} 53. Nh5 {[%clk 0:00:49.2]} 53... g6 {[%clk 0:00:04.9]} 54.
Nf6 {[%clk 0:00:49.6]} 54... g5 {[%clk 0:00:05.3]} 55. Kd6 {[%clk 0:00:49.6]}
55... g4 {[%clk 0:00:05.7]} 56. Nxg4 {[%clk 0:00:49.9]} 1/2-1/2

[Event "Early-Titled-Tuesday-Blitz-April-02-2024"]
[Site "Chess.com"]
[Date "2024.04.02"]
[Round "7"]
[White "KATPAH"]
[Black "LiadCuba"]
[Result "1-0"]
[WhiteElo "2667"]
[BlackElo "2538"]
[TimeControl "180+1"]
[EndTime "9:17:40 PDT"]
[Termination "KATPAH won on time"]

1. e4 {[%clk 0:03:00.9]} 1... c5 {[%clk 0:02:58.4]} 2. d4 {[%clk 0:03:01.2]}
2... cxd4 {[%clk 0:02:59.3]} 3. c3 {[%clk 0:02:58.8]} 3... d5 {[%clk 0:02:59.3]}
4. exd5 {[%clk 0:02:58.7]} 4... Qxd5 {[%clk 0:02:59]} 5. cxd4 {[%clk 0:02:59.4]}
5... Nc6 {[%clk 0:02:58.8]} 6. Nf3 {[%clk 0:02:59.3]} 6... e5 {[%clk 0:02:56.5]}
7. Nc3 {[%clk 0:02:58.8]} 7... Bb4 {[%clk 0:02:55.9]} 8. Be2 {[%clk 0:02:56.8]}
8... exd4 {[%clk 0:02:48.8]} 9. O-O {[%clk 0:02:55.8]} 9... Bxc3 {[%clk
0:02:44.9]} 10. bxc3 {[%clk 0:02:55.8]} 10... Nge7 {[%clk 0:02:41.8]} 11. Nxd4
{[%clk 0:02:54.5]} 11... Nxd4 {[%clk 0:02:41.3]} 12. Qxd4 {[%clk 0:02:52.9]}
12... Qxd4 {[%clk 0:02:41.4]} 13. cxd4 {[%clk 0:02:53.8]} 13... Be6 {[%clk
0:02:36.4]} 14. Bf3 {[%clk 0:02:49.6]} 14... Bd5 {[%clk 0:02:30.4]} 15. Ba3
{[%clk 0:02:43.7]} 15... Bxf3 {[%clk 0:02:30]} 16. Rfe1 {[%clk 0:02:43.2]} 16...
Bd5 {[%clk 0:02:09.8]} 17. Rxe7+ {[%clk 0:02:42.6]} 17... Kd8 {[%clk 0:02:09.9]}
18. Re5 {[%clk 0:02:39.2]} 18... Be6 {[%clk 0:02:07.1]} 19. d5 {[%clk
0:02:36.7]} 19... Bd7 {[%clk 0:02:02.1]} 20. Re7 {[%clk 0:02:31.5]} 20... Be8
{[%clk 0:01:42.2]} 21. Rxb7 {[%clk 0:02:29.3]} 21... Kc8 {[%clk 0:01:38.9]} 22.
Rab1 {[%clk 0:02:23.4]} 22... h5 {[%clk 0:01:29.1]} 23. Bd6 {[%clk 0:01:44.9]}
23... Rh6 {[%clk 0:01:25.4]} 24. Bf4 {[%clk 0:01:36.2]} 24... Rb6 {[%clk
0:01:19.5]} 25. Rc7+ {[%clk 0:01:06.7]} 25... Kd8 {[%clk 0:01:19.1]} 26. Re1
{[%clk 0:01:07.5]} 26... Bd7 {[%clk 0:00:56.3]} 27. h4 {[%clk 0:00:55.2]} 27...
Rb4 {[%clk 0:00:45.5]} 28. Bg3 {[%clk 0:00:50.7]} 28... Ra4 {[%clk 0:00:36.6]}
29. d6 {[%clk 0:00:48.7]} 29... Be6 {[%clk 0:00:31.5]} 30. Be5 {[%clk
0:00:44.1]} 30... Rc8 {[%clk 0:00:22.7]} 31. Re7 {[%clk 0:00:43.4]} 31... Rc6
{[%clk 0:00:18.3]} 32. Bxg7 {[%clk 0:00:35.2]} 32... Rxd6 {[%clk 0:00:18.3]} 33.
Bf6 {[%clk 0:00:35.9]} 33... Kc8 {[%clk 0:00:17.1]} 34. Rc1+ {[%clk 0:00:34.8]}
34... Rc4 {[%clk 0:00:15.3]} 35. Rxc4+ {[%clk 0:00:30.7]} 35... Bxc4 {[%clk
0:00:16.2]} 36. Be5 {[%clk 0:00:31.5]} 36... Rd1+ {[%clk 0:00:13.9]} 37. Kh2
{[%clk 0:00:31.8]} 37... Bxa2 {[%clk 0:00:14.5]} 38. Rxa7 {[%clk 0:00:32.2]}
38... Be6 {[%clk 0:00:13.7]} 39. Ra5 {[%clk 0:00:29.2]} 39... Rd2 {[%clk
0:00:13]} 40. Bg3 {[%clk 0:00:27.4]} 40... Bg4 {[%clk 0:00:12.5]} 41. Ra7 {[%clk
0:00:26.6]} 41... Be6 {[%clk 0:00:12.1]} 42. f3 {[%clk 0:00:23.5]} 42... Bd5
{[%clk 0:00:10.2]} 43. Ra3 {[%clk 0:00:23.1]} 43... Kd7 {[%clk 0:00:09.3]} 44.
Bf4 {[%clk 0:00:23.2]} 44... Re2 {[%clk 0:00:06.6]} 45. Kg3 {[%clk 0:00:23.4]}
45... Ke6 {[%clk 0:00:05.9]} 46. Ra6+ {[%clk 0:00:23]} 46... Kf5 {[%clk
0:00:04.8]} 47. Rh6 {[%clk 0:00:23.3]} 1-0